lending/lending_fUSD_20260306
["ID","MTS","AMOUNT","RATE_DAILY","PERIOD"]
[407858611,1772837010551,-2900.0,0.00049592,60]
[407858612,1772837010607,-150.0,0.00049592,30]
[407858613,1772837010667,-150.0,0.00049597,30]
[407858614,1772837010715,-442096.05368458,0.000496,120]
[407858615,1772837010764,-151.0,0.000496,120]
[407858616,1772837010817,-151.0,0.000496,120]
[407858617,1772837010869,-151.0,0.000496,120]
[407858618,1772837010921,-151.0,0.000496,30]
[407858619,1772837010975,-151.0,0.000496,30]
[407858620,1772837011028,-167.586484,0.000496,120]
[407858621,1772837011080,-167.586484,0.000496,120]
[407858622,1772837011133,-167.586484,0.000496,120]
[407858623,1772837011186,-167.586484,0.000496,120]
[407858624,1772837011240,-151.0,0.000496,120]
[407858625,1772837011292,-241.0,0.000496,120]
[407858626,1772837011345,-151.0,0.000496,120]
[407858627,1772837011398,-4172.79,0.00049613,30]
[407858628,1772837011450,-609.19,0.00049613,30]
[407858629,1772837011500,-1501.4,0.00049613,30]
[407858630,1772837011552,-159.49661076,0.00049624,30]
[407858631,1772837011606,-237.39121081,0.00049624,30]
[407858632,1772837011658,-178.56416906,0.00049624,30]
[407858633,1772837011709,-259.39398879,0.00049624,30]
[407858634,1772837011756,-496.10721813,0.00049624,30]
[407858635,1772837011802,-196.401106,0.00049624,30]
[407858636,1772837011847,-150.0,0.00049627,30]
[407858637,1772837011895,-150.0,0.00049647,30]
[407858638,1772837011942,-1484.70625319,0.0004966,120]
[407858639,1772837011990,-150.0,0.00049672,120]
[407858640,1772837012038,-159.49661076,0.00049675,30]
[407858641,1772837012088,-237.39121081,0.00049675,30]
[407858642,1772837012137,-178.56416906,0.00049675,30]
[407858643,1772837012188,-259.39398879,0.00049675,30]
[407858644,1772837012239,-496.10721813,0.00049675,30]
[407858645,1772837012289,-196.401106,0.00049675,30]
[407858646,1772837012339,-150.0,0.00049688,30]
[407858647,1772837012392,-150.0,0.00049688,30]
[407858648,1772837012441,-150.0,0.00049688,30]
[407858649,1772837012489,-150.0,0.00049688,30]
[407858650,1772837012540,-150.0,0.00049702,30]
[407858651,1772837012591,-150.0,0.00049706,120]
[407858652,1772837012638,-150.0,0.00049721,120]
[407858653,1772837012683,-150.0,0.00049722,30]
[407858654,1772837012725,-150.0,0.00049722,30]
[407858655,1772837012768,-150.0,0.00049723,120]
[407858656,1772837012812,-159.49661076,0.00049727,30]
[407858657,1772837012857,-237.39121081,0.00049727,30]
[407858658,1772837012905,-178.56416906,0.00049727,30]
[407858659,1772837012949,-259.39398879,0.00049727,30]
[407858660,1772837012996,-496.10721813,0.00049727,30]
[407858661,1772837013042,-196.401106,0.00049727,30]
[407858662,1772837013091,-150.0,0.00049749,30]
[407858663,1772837013139,-150.0,0.00049756,30]
[407858664,1772837013188,-159.49661076,0.00049778,30]
[407858665,1772837013240,-237.39121081,0.00049778,30]
[407858666,1772837013290,-178.56416906,0.00049778,30]
[407858667,1772837013339,-259.39398879,0.00049778,30]
[407858668,1772837013387,-496.10721813,0.00049778,30]
[407858669,1772837013439,-196.401106,0.00049778,30]
[407858670,1772837013492,-150.0,0.00049779,30]
[407858671,1772837013545,-150.0,0.00049786,30]
[407858672,1772837013595,-150.0,0.00049811,30]
[407858673,1772837013645,-159.49661076,0.0004983,30]
[407858674,1772837013696,-237.39121081,0.0004983,30]
[407858675,1772837013744,-178.56416906,0.0004983,30]
[407858676,1772837013791,-259.39398879,0.0004983,30]
[407858677,1772837013841,-496.10721813,0.0004983,30]
[407858678,1772837013891,-196.401106,0.0004983,30]
[407858679,1772837013935,-150.0,0.0004983,30]
[407858680,1772837013983,-150.0,0.0004986,30]
[407858681,1772837014025,-150.0,0.0004986,30]
[407858682,1772837014071,-467.19,0.00049864,120]
[407858683,1772837014118,-150.0,0.00049866,30]
[407858684,1772837014163,-150.0,0.0004987,30]
[407858685,1772837014208,-150.0,0.0004987,30]
[407858686,1772837014253,-151.0,0.00049877,120]
[407858687,1772837014302,-11408.51288977,0.0004988,54]
[407858688,1772837014350,-371.43183159,0.0004988,30]
[407858689,1772837014398,-24849.85281469,0.0004988,30]
[407858690,1772837014448,-151.0,0.0004988,120]
[407858691,1772837014494,-151.0,0.0004988,120]
[407858692,1772837014538,-151.0,0.0004988,120]
[407858693,1772837014584,-151.0,0.0004988,30]
[407858694,1772837014629,-274.797957,0.0004988,30]
[407858695,1772837014673,-159.49661076,0.00049881,30]
[407858696,1772837014717,-237.39121081,0.00049881,30]
[407858697,1772837014763,-178.56416906,0.00049881,30]
[407858698,1772837014808,-259.39398879,0.00049881,30]
[407858699,1772837014854,-496.10721813,0.00049881,30]
[407858700,1772837014904,-196.401106,0.00049881,30]
[407858701,1772837014951,-150.0,0.00049884,30]
[407858702,1772837015000,-151.0,0.00049897,120]
[407858703,1772837015049,-151.0,0.00049897,120]
[407858704,1772837015098,-151.0,0.00049897,120]
[407858705,1772837015150,-2865086.32093025,0.000499,120]
[407858706,1772837016658,-4070.30836611,0.0001293,2]
[407858707,1772837016687,-300.0,0.00012984,2]
[407858708,1772837016720,-492.83188893,0.00012985,2]
[407858709,1772837016773,-563.30601663,0.00012985,2]
[407858710,1772837016804,-563.30601663,0.00012985,2]
[407858711,1772837016834,-563.30601663,0.00012985,2]
[407858712,1772837016864,-563.30601663,0.00012985,2]
[407858713,1772837016897,-563.30601663,0.00012985,2]
[407858714,1772837016929,-563.30601663,0.00012985,2]
[407858715,1772837016964,-563.30601663,0.00012985,2]
[407858716,1772837016995,-563.30601663,0.00012985,2]
[407858717,1772837017030,-423.80771729,0.00012985,2]
[407858718,1772837017070,-139.49829934,0.00012985,2]
[407858719,1772837017102,-563.30601663,0.00012985,2]
[407858720,1772837017135,-563.30601663,0.00012985,2]
[407858721,1772837017166,-563.30601663,0.00012985,2]
[407858722,1772837017197,-563.30601663,0.00012985,2]
[407858723,1772837017230,-563.30601663,0.00012985,2]
[407858724,1772837017262,-563.30601663,0.00012985,2]
[407858725,1772837017294,-563.30601663,0.00012985,2]
[407858726,1772837017327,-563.30601663,0.00012985,2]
[407858727,1772837017362,-144.81111861,0.00012985,2]
[407858728,1772837017403,-418.49489802,0.00012985,2]
[407858729,1772837017435,-563.30601663,0.00012985,2]
[407858730,1772837017470,-563.30601663,0.00012985,2]
[407858731,1772837017502,-563.30601663,0.00012985,2]
[407858732,1772837017534,-563.30601663,0.00012985,2]
[407858733,1772837017567,-563.30601663,0.00012985,2]
[407858734,1772837017598,-563.30601663,0.00012985,2]
[407858735,1772837017629,-563.30601663,0.00012985,2]
[407858736,1772837017661,-563.30601663,0.00012985,2]
[407858737,1772837017712,-563.30601663,0.00012985,2]
[407858738,1772837017745,-563.30601663,0.00012985,2]
[407858739,1772837017779,-563.30601663,0.00012985,2]
[407858740,1772837017813,-563.30601663,0.00012985,2]
[407858741,1772837017847,-563.30601663,0.00012985,2]
[407858742,1772837017881,-563.30601663,0.00012985,2]
[407858743,1772837017916,-563.30601663,0.00012985,2]
[407858744,1772837017947,-176.74002648,0.00012985,2]
[407858745,1772837017979,-500.0,0.00012985,2]
[407858746,1772837018007,-281.78826495,0.00012985,2]
[407858747,1772837018837,-653.745,0.00012726,2]
[407858748,1772837018864,-222.696,0.00012726,2]
[407858749,1772837018894,-196.66918432,0.00012985,2]
[407858750,1772837018927,-550.43045054,0.00012985,2]
[407858751,1772837018958,-550.43045054,0.00012985,2]
[407858752,1772837018988,-550.43045054,0.00012985,2]
[407858753,1772837019018,-550.43045054,0.00012985,2]
[407858754,1772837019048,-550.43045054,0.00012985,2]
[407858755,1772837019078,-550.43045054,0.00012985,2]
[407858756,1772837019108,-550.43045054,0.00012985,2]
[407858757,1772837023604,-157.65112413,0.00012886,2]
[407858758,1772837023619,-550.43045054,0.00012886,2]
[407858759,1772837023633,-550.43045054,0.00012886,2]
[407858760,1772837023648,-147.7633238,0.00012886,2]
[407858761,1772837023691,-1093.72465099,0.00012886,2]
[407858762,1772837023944,-7812.56069802,0.00012986,2]
[407858763,1772837023960,-10000.01,0.00012986,2]
[407858764,1772837023978,-10000.01,0.00012986,2]
[407858765,1772837024019,-10000.01,0.00012986,2]
[407858766,1772837024035,-10000.01,0.00012986,2]
[407858767,1772837024050,-10000.01,0.00012986,2]
[407858769,1772837070826,-506.0,0.0001342,33]
[407858770,1772837070892,-506.0,0.00015798,33]
[407858771,1772837070953,-506.0,0.00018176,34]
[407858772,1772837071007,-4795.7,0.0002,30]
[407858773,1772837071061,-506.0,0.00020554,35]
[407858774,1772837071114,-4624.0,0.00022717,30]
[407858775,1772837071168,-506.0,0.00022931,36]
[407858776,1772837071224,-506.0,0.00025309,37]
[407858777,1772837071279,-480.35,0.00025433,60]
[407858778,1772837071338,-506.0,0.00027687,38]
[407858779,1772837071396,-827.912718,0.00028489,30]
[407858780,1772837071453,-506.0,0.00030065,39]
[407858781,1772837071509,-224.19093608,0.00032,120]
[407858782,1772837071564,-506.0,0.00032443,40]
[407858783,1772837071617,-224.19093608,0.00033,120]
[407858784,1772837071670,-506.0,0.00034821,41]
[407858785,1772837071724,-653.746,0.00037045,47]
[407858786,1772837071777,-506.0,0.00037199,42]
[407858787,1772837071835,-506.0,0.00039576,43]
[407858788,1772837071890,-362.617462,0.00041095,120]
[407858789,1772837071946,-500.0,0.00041095,120]
[407858790,1772837072000,-7592.71,0.00041095,120]
[407858791,1772837072055,-463.23075741,0.00041095,120]
[407858792,1772837072109,-500.0,0.00041095,120]
[407858793,1772837072163,-500.0,0.00041369,120]
[407858794,1772837072220,-7592.71,0.00041369,120]
[407858795,1772837072274,-525.7637228,0.00041369,120]
[407858796,1772837072333,-426.24966144,0.00041643,120]
[407858797,1772837072389,-7592.71,0.00041643,120]
[407858798,1772837072449,-7592.71,0.00041917,120]
[407858799,1772837072503,-506.0,0.00041954,44]
[407858800,1772837072557,-150.0,0.00042173,120]
[407858801,1772837072612,-7592.71,0.00042191,120]
[407858802,1772837072663,-154.55714286,0.00042358,30]
[407858803,1772837072714,-154.55714286,0.00042361,30]
[407858804,1772837072772,-7592.71,0.00042465,120]
[407858805,1772837072829,-7592.71,0.00042739,120]
[407858806,1772837072883,-185.0,0.00043,90]
[407858807,1772837072940,-7592.71,0.00043013,120]
[407858808,1772837072998,-7592.71,0.00043287,120]
[407858809,1772837073047,-162.28542857,0.00043354,30]
[407858810,1772837073098,-162.28542857,0.00043377,30]
[407858811,1772837073155,-7592.71,0.00043561,120]
[407858812,1772837073479,-194.74285714,0.00043809,30]
[407858813,1772837073537,-1999.0,0.00043835,120]
[407858814,1772837073595,-7592.71,0.00043835,120]
[407858815,1772837073649,-800.0,0.00043836,32]
[407858816,1772837073701,-20000.0,0.00043836,120]
[407858817,1772837073756,-7592.71,0.00044109,120]
[407858818,1772837073809,-182.0,0.00044256,30]
[407858819,1772837073862,-150.0,0.00044281,120]
[407858820,1772837073916,-506.0,0.00044332,45]
[407858821,1772837073970,-7592.71,0.00044383,120]
[407858822,1772837074023,-162.39,0.00044494,60]
[407858823,1772837074078,-7592.71,0.00044657,120]
[407858824,1772837074131,-185.0,0.00044877,90]
[407858825,1772837074186,-7592.71,0.00044931,120]
[407858826,1772837074241,-500.0,0.00044967,60]
[407858827,1772837074296,-500.0,0.00044967,60]
[407858828,1772837074352,-500.0,0.00044967,60]
[407858829,1772837074407,-500.0,0.00044967,60]
[407858830,1772837074463,-500.0,0.00044967,60]
[407858831,1772837074518,-500.0,0.00044967,60]
[407858832,1772837074572,-500.0,0.00044967,60]
[407858833,1772837074625,-500.0,0.00044967,60]
[407858834,1772837074677,-500.0,0.00044967,60]
[407858835,1772837074730,-500.0,0.00044967,60]
[407858836,1772837074783,-500.0,0.00044967,60]
[407858837,1772837074837,-500.0,0.00044967,60]
[407858838,1772837074892,-500.0,0.00044967,60]
[407858839,1772837074949,-500.0,0.00044967,60]
[407858840,1772837075003,-500.0,0.00044967,60]
[407858841,1772837075059,-500.0,0.00044967,60]
[407858842,1772837075115,-500.0,0.00044967,60]
[407858843,1772837075169,-500.0,0.00044967,60]
[407858844,1772837075223,-500.0,0.00044967,60]
[407858845,1772837075278,-500.0,0.00044967,60]
[407858846,1772837075333,-500.0,0.00044967,60]
[407858847,1772837075387,-500.0,0.00044967,60]
[407858848,1772837075442,-500.0,0.00044967,60]
[407858849,1772837075497,-500.0,0.00044967,60]
[407858850,1772837075552,-500.0,0.00044967,60]
[407858851,1772837075605,-500.0,0.00044967,60]
[407858852,1772837075660,-500.0,0.00044967,60]
[407858853,1772837075717,-500.0,0.00044967,60]
[407858854,1772837075775,-500.0,0.00044967,60]
[407858855,1772837075832,-500.0,0.00044967,60]
[407858856,1772837075890,-500.0,0.00044967,60]
[407858857,1772837075950,-500.0,0.00044967,60]
[407858858,1772837076008,-500.0,0.00044967,60]
[407858859,1772837076062,-500.0,0.00044967,60]
[407858860,1772837076118,-500.0,0.00044967,60]
[407858861,1772837076177,-500.0,0.00044967,60]
[407858862,1772837076234,-500.0,0.00044967,60]
[407858863,1772837076290,-500.0,0.00044967,60]
[407858864,1772837076348,-500.0,0.00044967,60]
[407858865,1772837076408,-1126.05,0.00045,120]
[407858866,1772837076470,-151.0,0.00045007,120]
[407858867,1772837076531,-7592.71,0.00045205,120]
[407858868,1772837076591,-7592.71,0.00045479,120]
[407858869,1772837076650,-7592.71,0.00045753,120]
[407858870,1772837076705,-7592.71,0.00046027,120]
[407858871,1772837076765,-7592.71,0.00046301,120]
[407858872,1772837076816,-150.0,0.00046495,120]
[407858873,1772837076873,-7592.71,0.00046575,120]
[407858874,1772837076926,-506.0,0.0004671,46]
[407858875,1772837076983,-7592.71,0.00046849,120]
[407858876,1772837077039,-7592.71,0.00047123,120]
[407858877,1772837077091,-399.070641,0.00047149,120]
[407858878,1772837077143,-151.0,0.0004715,120]
[407858879,1772837077197,-151.0,0.0004715,30]
[407858880,1772837077250,-151.0,0.0004715,120]
[407858881,1772837077304,-151.0,0.0004715,120]
[407858882,1772837077360,-151.0,0.0004715,120]
[407858883,1772837077415,-151.0,0.0004715,120]
[407858884,1772837077475,-151.0,0.0004715,120]
[407858885,1772837077526,-167.36124,0.0004715,120]
[407858886,1772837077578,-160.20926,0.0004715,120]
[407858887,1772837077629,-160.20926,0.0004715,120]
[407858888,1772837077678,-160.20926,0.0004715,120]
[407858889,1772837077728,-160.20926,0.0004715,120]
[407858890,1772837077778,-151.0,0.0004715,120]
[407858891,1772837077830,-151.0,0.0004715,30]
[407858892,1772837077881,-151.0,0.0004715,30]
[407858893,1772837077933,-151.0,0.00047163,120]
[407858894,1772837077991,-150.0,0.000472,82]
[407858895,1772837078044,-160.774024,0.00047232,120]
[407858896,1772837078097,-151.0,0.00047232,120]
[407858897,1772837078150,-151.0,0.00047232,120]
[407858898,1772837078208,-151.0,0.00047232,120]
[407858899,1772837078261,-160.20926,0.00047232,120]
[407858900,1772837078313,-160.20926,0.00047232,120]
[407858901,1772837078366,-160.20926,0.00047232,120]
[407858902,1772837078419,-160.20926,0.00047232,120]
[407858903,1772837078474,-151.0,0.00047232,120]
[407858904,1772837078530,-151.0,0.00047232,30]
[407858905,1772837078582,-151.0,0.00047232,30]
[407858906,1772837078631,-151.0,0.00047232,120]
[407858907,1772837078679,-251.379726,0.00047232,120]
[407858908,1772837078727,-251.379726,0.00047232,120]
[407858909,1772837078775,-251.379726,0.00047232,120]
[407858910,1772837078824,-251.379726,0.00047232,120]
[407858911,1772837078873,-151.0,0.00047232,120]
[407858912,1772837078922,-151.0,0.00047232,120]
[407858913,1772837078971,-3129.59,0.0004725,120]
[407858914,1772837079020,-456.89,0.0004725,120]
[407858915,1772837079240,-1126.05,0.0004725,120]
[407858916,1772837079297,-7592.88868813,0.00047397,120]
[407858917,1772837079354,-1211.33,0.000478,120]
[407858918,1772837079408,-1211.33,0.00048158,120]
[407858919,1772837079462,-150.0,0.000482,85]
[407858920,1772837079516,-1211.33,0.00048516,120]
[407858921,1772837079570,-20000.0,0.000488,120]
[407858922,1772837079621,-150.0,0.0004882,120]
[407858923,1772837079673,-1211.33,0.00048874,120]
[407858924,1772837079726,-217.49838527,0.000489,120]
[407858925,1772837079781,-217.49838509,0.000489,120]
[407858926,1772837079836,-217.49838509,0.000489,120]
[407858927,1772837079892,-217.49838509,0.000489,120]
[407858928,1772837079948,-217.49838509,0.000489,120]
[407858929,1772837079999,-217.49838509,0.000489,120]
[407858930,1772837080050,-217.49838509,0.000489,120]
[407858931,1772837080102,-217.49838509,0.000489,120]
[407858932,1772837080153,-217.49838509,0.000489,120]
[407858933,1772837080205,-217.49838509,0.000489,120]
[407858934,1772837080260,-217.49838509,0.000489,120]
[407858935,1772837080313,-217.49838509,0.000489,120]
[407858936,1772837080366,-217.49838509,0.000489,120]
[407858937,1772837080421,-217.49838509,0.000489,120]
[407858938,1772837080475,-217.49838509,0.000489,120]
[407858939,1772837080531,-217.49838509,0.000489,120]
[407858940,1772837080585,-217.49838509,0.000489,120]
[407858941,1772837080639,-217.49838509,0.000489,120]
[407858942,1772837080692,-217.49838509,0.000489,120]
[407858943,1772837080747,-217.49838509,0.000489,120]
[407858944,1772837080803,-150.0,0.00049,120]
[407858945,1772837080857,-150.0,0.00049,120]
[407858946,1772837080914,-506.0,0.00049088,47]
[407858947,1772837080972,-1000.0,0.00049089,120]
[407858948,1772837081029,-161.22585808,0.00049165,120]
[407858949,1772837081084,-157.1653646,0.00049165,120]
[407858950,1772837081141,-1106.0,0.00049165,120]
[407858951,1772837081195,-187.26852543,0.00049165,120]
[407858952,1772837081252,-1109.0,0.00049165,120]
[407858953,1772837081305,-150.0,0.000492,88]
[407858954,1772837081364,-1211.33,0.00049232,120]
[407858955,1772837081427,-500.0,0.00049315,120]
[407858956,1772837081482,-500.0,0.00049315,120]
[407858957,1772837081537,-500.0,0.00049315,120]
[407858958,1772837081589,-500.0,0.00049315,120]
[407858959,1772837081643,-500.0,0.00049315,120]
[407858960,1772837081694,-500.0,0.00049315,120]
[407858961,1772837081744,-500.0,0.00049315,120]
[407858962,1772837081793,-500.0,0.00049315,120]
[407858963,1772837081843,-500.0,0.00049315,120]
[407858964,1772837081894,-500.0,0.00049315,120]
[407858965,1772837081950,-500.0,0.00049315,120]
[407858966,1772837081999,-500.0,0.00049315,120]
[407858967,1772837082048,-500.0,0.00049315,120]
[407858968,1772837082096,-500.0,0.00049315,120]
[407858969,1772837082145,-500.0,0.00049315,120]
[407858970,1772837082193,-500.0,0.00049315,120]
[407858971,1772837082243,-500.0,0.00049315,120]
[407858972,1772837082294,-500.0,0.00049315,120]
[407858973,1772837082346,-500.0,0.00049315,120]
[407858974,1772837082397,-500.0,0.00049315,120]
[407858975,1772837082448,-500.0,0.00049315,120]
[407858976,1772837082500,-500.0,0.00049315,120]
[407858977,1772837082551,-627.92320677,0.00049315,120]
[407858978,1772837082602,-500.0,0.00049315,120]
[407858979,1772837082653,-613.88026854,0.00049315,120]
[407858980,1772837082704,-500.0,0.00049315,120]
[407858981,1772837082755,-501.14447522,0.00049315,120]
[407858982,1772837082805,-500.0,0.00049315,120]
[407858983,1772837082856,-500.0,0.00049315,120]
[407858984,1772837082910,-455.0,0.00049315,120]
[407858985,1772837082964,-800.0,0.00049315,34]
[407858986,1772837083017,-1000.0,0.00049315,120]
[407858987,1772837083068,-1000.0,0.00049315,120]
[407858988,1772837083119,-1000.0,0.00049315,120]
[407858989,1772837083172,-723.65089197,0.00049315,120]
[407858990,1772837083227,-150.0,0.00049379,30]
[407858991,1772837083286,-1000.0,0.00049395,30]
[407858992,1772837083344,-150.0,0.00049486,30]
[407858993,1772837083400,-150.0,0.00049557,30]
[407858994,1772837083456,-1211.33,0.0004959,120]
[407858995,1772837083515,-151.0,0.000496,120]
[407858996,1772837083572,-151.0,0.000496,120]
[407858997,1772837083627,-151.0,0.000496,120]
[407858998,1772837083679,-160.20926,0.000496,120]
[407858999,1772837083731,-160.20926,0.000496,120]
[407859000,1772837083781,-160.20926,0.000496,120]
[407859001,1772837083832,-160.20926,0.000496,120]
[407859002,1772837083886,-151.0,0.000496,30]
[407859003,1772837083941,-151.0,0.000496,30]
[407859004,1772837083995,-251.379726,0.000496,120]
[407859005,1772837084047,-251.379726,0.000496,120]
[407859006,1772837084099,-251.379726,0.000496,120]
[407859007,1772837084153,-251.379726,0.000496,120]
[407859008,1772837084206,-170.159298,0.000496,120]
[407859009,1772837084257,-1126.05,0.00049613,120]
[407859010,1772837084311,-624.74506328,0.0004975,120]
[407859011,1772837084364,-510.0,0.0004975,120]
[407859012,1772837084418,-750.0,0.0004975,120]
[407859013,1772837084473,-306.90288465,0.0004975,120]
[407859014,1772837084529,-287.50841925,0.00049877,120]
[407859015,1772837084582,-268.9293671,0.0004988,120]
[407859016,1772837084635,-151.0,0.0004988,120]
[407859017,1772837084689,-151.0,0.0004988,120]
[407859018,1772837084885,-151.0,0.0004988,120]
[407859019,1772837084947,-160.20926,0.0004988,120]
[407859020,1772837085000,-160.20926,0.0004988,120]
[407859021,1772837085054,-160.20926,0.0004988,120]
[407859022,1772837085107,-160.20926,0.0004988,120]
[407859023,1772837085160,-151.0,0.0004988,30]
[407859024,1772837085215,-251.379726,0.0004988,120]
[407859025,1772837085273,-251.379726,0.0004988,120]
[407859026,1772837085326,-251.379726,0.0004988,120]
[407859027,1772837085379,-251.379726,0.0004988,120]
[407859028,1772837085431,-158.934011,0.0004988,120]
[407859029,1772837085485,-151.0,0.0004988,120]
[407859030,1772837085538,-151.0,0.0004988,120]
[407859031,1772837085593,-12160.555093,0.0004988,120]
[407859032,1772837085645,-151.0,0.0004988,120]
[407859033,1772837085699,-12160.555093,0.0004988,120]
[407859034,1772837085751,-151.0,0.0004988,120]
[407859035,1772837085805,-12160.555093,0.0004988,120]
[407859036,1772837085858,-151.0,0.0004988,120]
[407859037,1772837085916,-12160.555093,0.0004988,120]
[407859038,1772837085970,-293.117686,0.0004988,120]
[407859039,1772837086023,-275.831977,0.0004988,120]
[407859040,1772837086076,-151.0,0.0004988,120]
[407859041,1772837086129,-293.117686,0.0004988,120]
[407859042,1772837086187,-293.117686,0.0004988,120]
[407859043,1772837086246,-293.117686,0.0004988,120]
[407859044,1772837086303,-151.0,0.0004988,120]
[407859045,1772837086358,-151.0,0.0004988,120]
[407859046,1772837086414,-151.0,0.0004988,120]
[407859047,1772837086469,-151.0,0.0004988,120]
[407859048,1772837086525,-151.0,0.0004988,120]
[407859049,1772837086579,-170.0,0.00049883,30]
[407859050,1772837086637,-176.29,0.00049883,30]
[407859051,1772837086691,-182.81273,0.00049883,30]
[407859052,1772837086746,-189.57680101,0.00049883,30]
[407859053,1772837086801,-196.59114265,0.00049883,30]
[407859054,1772837086855,-203.86501493,0.00049883,30]
[407859055,1772837086911,-211.40802048,0.00049883,30]
[407859056,1772837086963,-219.23011724,0.00049883,30]
[407859057,1772837087016,-4108.1,0.00049896,120]
[407859058,1772837087069,-500.0,0.00049899,120]
[407859059,1772837087125,-500.0,0.00049899,120]
[407859060,1772837087180,-500.0,0.00049899,120]
[407859061,1772837087238,-500.0,0.00049899,120]
[407859062,1772837087297,-500.0,0.00049899,120]
[407859063,1772837087353,-500.0,0.00049899,120]
[407859064,1772837087410,-500.0,0.00049899,120]
[407859065,1772837087467,-500.0,0.00049899,120]
[407859066,1772837087522,-500.0,0.00049899,120]
[407859067,1772837087574,-500.0,0.00049899,120]
[407859068,1772837087632,-500.0,0.00049899,120]
[407859069,1772837087688,-500.0,0.00049899,120]
[407859070,1772837087744,-151.0,0.00049899,120]
[407859071,1772837087796,-500.0,0.00049899,120]
[407859072,1772837087851,-500.0,0.00049899,120]
[407859073,1772837087908,-500.0,0.00049899,120]
[407859074,1772837087962,-151.0,0.00049899,120]
[407859075,1772837088017,-500.0,0.00049899,120]
[407859076,1772837088071,-151.0,0.00049899,120]
[407859077,1772837088129,-500.0,0.00049899,120]
[407859078,1772837088187,-151.0,0.00049899,120]
[407859079,1772837088244,-500.0,0.00049899,120]
[407859080,1772837088301,-151.0,0.00049899,120]
[407859081,1772837088358,-500.0,0.00049899,120]
[407859082,1772837088417,-151.0,0.00049899,120]
[407859083,1772837088476,-500.0,0.00049899,120]
[407859084,1772837088535,-500.0,0.00049899,120]
[407859085,1772837088593,-151.0,0.00049899,120]
[407859086,1772837088649,-500.0,0.00049899,120]
[407859087,1772837088704,-151.0,0.00049899,120]
[407859088,1772837088758,-151.0,0.00049899,120]
[407859089,1772837088813,-500.0,0.00049899,120]
[407859090,1772837088868,-150.0,0.00049899,120]
[407859091,1772837088924,-500.0,0.00049899,120]
[407859092,1772837088978,-150.0,0.00049899,120]
[407859093,1772837089035,-151.0,0.00049899,120]
[407859094,1772837089093,-500.0,0.00049899,120]
[407859095,1772837089151,-518.5,0.00049899,120]
[407859096,1772837089208,-500.0,0.00049899,120]
[407859097,1772837089274,-537.6845,0.00049899,120]
[407859098,1772837089349,-151.0,0.00049899,120]
[407859099,1772837089411,-500.0,0.00049899,120]
[407859100,1772837089471,-500.0,0.00049899,120]
[407859101,1772837089529,-500.0,0.00049899,120]
[407859102,1772837089604,-500.0,0.00049899,120]
[407859103,1772837089666,-557.5788265,0.00049899,120]
[407859104,1772837089724,-151.0,0.00049899,120]
[407859105,1772837089780,-500.0,0.00049899,120]
[407859106,1772837089836,-500.0,0.00049899,120]
[407859107,1772837089895,-808.78668138,0.00049899,120]
[407859108,1772837089956,-579.40616332,0.00049899,120]
[407859109,1772837090017,-578.20924308,0.00049899,120]
[407859110,1772837090072,-151.0,0.00049899,120]
[407859111,1772837090128,-500.0,0.00049899,120]